Workbook

Sheet Data
C2: country= | D2: Chile
C3: ifs_code= | D3: 228
C4: Year= | D4: 2013
B10: t | C10: ifs_code | D10: Country | E10: Year | F10: Y (Nominal Billions USD) | G10: X (Nominal Billions USD) | H10: Q (Nominal Billions USD) | BN10: trade balance + sib | BO10: trade balance | BP10: sib | BQ10: sib/gdp | BR10: pib | BS10: pib/gdp | BT10: assets | BU10: assets/gdp | BV10: liabilities | BW10: liabilities/gdp | BX10: yield on assets | BY10: yield on liabilities | BZ10: yield on assets in $ | CA10: yield on liabilities in $ | CB10: pcpi | CC10: inflation | CD10: real GDP
B12: =B13-1 -> -31 | C12: =$D$3 -> 228 | D12: =$D$2 -> Chile | E12: =+E13-1 -> 1982 | F12: 25.45081858 | G12: 4.642 | H12: 5.053 | BM12: 1982 | BN12: -0.01186602306 | BO12: -0.01614879297 | BP12: 0.109 | BQ12: 0.004282769911 | BR12: 35.164 | BS12: 1.381645148 | CB12: 5.655638802 | CD12: 29402.49594
B13: -30 | C13: 228 | D13: Chile | E13: 1983 | F13: 20.67287048 | G13: 4.628 | H13: 4.081 | BM13: 1983 | BN13: 0.031151939 | BO13: 0.02645979912 | BP13: 0.097 | BQ13: 0.00469213988 | BR13: 36.384 | BS13: 1.759987808 | CB13: 7.197221377 | CC13: 0.2725744393 | CD13: 28578.62739
B14: -29 | C14: 228 | D14: Chile | E14: 1984 | F14: 20.10386511 | G14: 4.314 | H14: 4.495 | BM14: 1984 | BN14: -0.003680884228 | BO14: -0.009003243854 | BP14: 0.107 | BQ14: 0.005322359626 | BR14: 35.068 | BS14: 1.74434119 | CB14: 8.626599027 | CC14: 0.1986013178 | CD14: 30260.63485
B15: -28 | C15: 228 | D15: Chile | E15: 1985 | F15: 17.23818891 | G15: 4.49662 | H15: 4.0009 | BM15: 1985 | BN15: 0.03725565391 | BO15: 0.0287570813 | BP15: 0.1465 | BQ15: 0.008498572603 | BR15: 25.721 | BS15: 1.492094102 | CB15: 11.27524923 | CC15: 0.3070329567 | CD15: 30856.24895
B16: -27 | C16: 228 | D16: Chile | E16: 1986 | F16: 18.53115041 | G16: 5.23226 | H16: 4.6045 | BM16: 1986 | BN16: 0.03844661471 | BO16: 0.03387593247 | BP16: 0.0847 | BQ16: 0.004570682236 | BR16: 15.492 | BS16: 0.8359977473 | CB16: 13.47132234 | CC16: 0.1947693628 | CD16: 32583.0347
B17: -26 | C17: 228 | D17: Chile | E17: 1987 | F17: 21.85611386 | G17: 6.348 | H17: 5.4931 | BM17: 1987 | BN17: 0.04543808686 | BO17: 0.03911491336 | BP17: 0.1382 | BQ17: 0.006323173501 | BR17: 14.291 | BS17: 0.6538673842 | CB17: 16.1495254 | CC17: 0.1988077336 | CD17: 34727.2607
B18: -25 | C18: 228 | D18: Chile | E18: 1988 | F18: 25.76501097 | G18: 8.144 | H18: 6.6247 | BM18: 1988 | BN18: 0.06597707262 | BO18: 0.05896756658 | BP18: 0.1806 | BQ18: 0.007009506038 | BR18: 18.684 | BS18: 0.7251694951 | BV18: 5.76412565 | CB18: 18.52098633 | CC18: 0.146844001 | CD18: 37258.12856
B19: -24 | C19: 228 | D19: Chile | E19: 1989 | F19: 29.67967937 | G19: 9.61265 | H19: 8.59011 | BM19: 1989 | BN19: 0.04207390466 | BO19: 0.03445252853 | BP19: 0.2262 | BQ19: 0.007621376134 | BR19: 19.823 | BS19: 0.6678980509 | BV19: 4.472705461 | CB19: 21.67472125 | CC19: 0.1702789941 | CD19: 41209.3126
B20: -23 | C20: 228 | D20: Chile | E20: 1990 | F20: 32.99848036 | G20: 10.22160001 | H20: 9.172999986 | BM20: 1990 | BN20: 0.03776234585 | BO20: 0.03177722175 | BP20: 0.1975 | BQ20: 0.005985124097 | BR20: 28.549 | BS20: 0.8651610524 | BV20: 4.012331021 | CB20: 27.31794167 | CC20: 0.2603595383 | CD20: 42722.24215
B21: -22 | C21: 228 | D21: Chile | E21: 1991 | F21: 37.98141253 | G21: 11.06850001 | H21: 9.550699986 | BM21: 1991 | BN21: 0.04816303308 | BO21: 0.03996165301 | BP21: 0.3115 | BQ21: 0.008201380077 | BR21: 24.131 | BS21: 0.6353370872 | BV21: 3.896599259 | CB21: 33.27740833 | CC21: 0.2181521119 | CD21: 46018.41571
B22: -21 | C22: 228 | D22: Chile | E22: 1992 | F22: 46.2709935 | G22: 12.36460001 | H22: 11.81989999 | BM22: 1992 | BN22: 0.01993689692 | BO22: 0.01177195445 | BP22: 0.3778 | BQ22: 0.008164942471 | BR22: 24.235 | BS22: 0.5237622572 | BV22: 8.2536425 | CB22: 38.420025 | CC22: 0.1545377758 | CD22: 51141.03046
B23: =B24-1 -> -20 | C23: =$D$3 -> 228 | D23: =$D$2 -> Chile | E23: =+E24-1 -> 1993 | F23: 49.5057637 | G23: 11.71120001 | H23: 12.92819999 | BM23: 1993 | BN23: -0.01812112176 | BO23: -0.02458299562 | BP23: 0.3199 | BQ23: 0.006461873853 | BR23: 25.317 | BS23: 0.5113949995 | BV23: 7.423902975 | CB23: 43.31586667 | CC23: 0.1274294243 | CD23: 54578.5485
B24: -19 | C24: =$D$3 -> 228 | D24: =$D$2 -> Chile | E24: 1994 | F24: 57.11434187 | G24: 14.44380001 | H24: 13.86099999 | BM24: 1994 | BN24: 0.01600473713 | BO24: 0.01020409251 | BP24: 0.3313 | BQ24: 0.005800644622 | BR24: 17.147 | BS24: 0.3002223161 | BV24: 7.246100378 | CB24: 48.28005 | CC24: 0.1146042713 | CD24: 57341.08298
B25: -18 | C25: 228 | D25: Chile | E25: 1995 | F25: 73.60015831 | G25: 19.35890001 | H25: 18.29859999 | BM25: 1995 | BN25: 0.01857740607 | BO25: 0.01440621939 | BP25: 0.307 | BQ25: 0.00417118668 | BR25: 20.891 | BS25: 0.2838444982 | BV25: 6.071238807 | CB25: 52.25311667 | CC25: 0.08229209926 | CD25: 62412.53886
B26: -17 | C26: 228 | D26: Chile | E26: 1996 | F26: 78.02474127 | G26: 20.2149 | H26: 21.2874 | BM26: 1996 | BN26: -0.007241292836 | BO26: -0.01374563994 | BP26: 0.5075 | BQ26: 0.006504347105 | BR26: 22.315 | BS26: 0.2859990259 | BT26: 16.25837305 | BV26: 27.95952184 | BZ26: 0.5603 | CA26: 3.0639 | CB26: 56.09689167 | CC26: 0.07356068394 | CD26: 66646
B27: -16 | C27: 228 | D27: Chile | E27: 1997 | F27: 84.92386211 | G27: 21.7622 | H27: 23.3253 | BM27: 1997 | BN27: -0.01227923429 | BO27: -0.01840589866 | BP27: 0.5203 | BQ27: 0.006126664369 | BR27: 12.61 | BS27: 0.148485946 | BT27: 32.13404682 | BV27: 67.13790762 | BZ27: 0.8107 | CA27: 3.4072 | CB27: 59.53376667 | CC27: 0.06126676359 | CD27: 71570
B28: -15 | C28: 228 | D28: Chile | E28: 1998 | F28: 81.5903104 | G28: 20.2747 | H28: 22.7669 | BM28: 1998 | BN28: -0.02487795413 | BO28: -0.03054529377 | BP28: 0.4624 | BQ28: 0.005667339635 | BR28: 4.264 | BS28: 0.05226110771 | BT28: 36.81510552 | BV28: 71.75928707 | BZ28: 0.8268 | CA28: 2.6998 | CB28: 62.5733 | CC28: 0.05105561942 | CD28: 74763
B29: -14 | C29: 228 | D29: Chile | E29: 1999 | F29: 75.12075435 | G29: 21.0314 | H29: 19.3413 | BM29: 1999 | BN29: 0.03105133888 | BO29: 0.02249844287 | BP29: 0.6425 | BQ29: 0.008552896008 | BR29: 11.94 | BS29: 0.1589440908 | BT29: 46.69852982 | BV29: 80.39762214 | BZ29: 0.5103 | CA29: 2.7289 | CB29: 64.65904167 | CC29: 0.03333277399 | CD29: 74377
B30: -13 | C30: 228 | D30: Chile | E30: 2000 | F30: 77.82523336 | G30: 23.2932 | H30: 21.8932 | BM30: 2000 | BN30: 0.02515893516 | BO30: 0.01798902412 | BP30: 0.558 | BQ30: 0.007169911042 | BR30: 19.179 | BS30: 0.2464367811 | BT30: 47.00676413 | BV30: 82.37746058 | BZ30: 1.0942 | CA30: 3.9475 | CB30: 67.1408 | CC30: 0.03838223193 | CD30: 78352
B31: -12 | C31: 228 | D31: Chile | E31: 2001 | F31: 70.96752178 | G31: 22.4104 | H31: 21.411 | BM31: 2001 | BN31: 0.02009651689 | BO31: 0.01408249823 | BP31: 0.4268 | BQ31: 0.006014018657 | BR31: 29.728 | BS31: 0.4188958449 | BT31: 47.24522543 | BV31: 81.37106562 | BZ31: 0.9197 | CA31: 3.4421 | CB31: 69.53438333 | CC31: 0.03565020574 | CD31: 80948
B32: -11 | C32: 228 | D32: Chile | E32: 2002 | F32: 69.7291962 | G32: 22.5653 | H32: 20.8812 | BM32: 2002 | BN32: 0.03250575259 | BO32: 0.0241520065 | BP32: 0.5825 | BQ32: 0.008353746088 | BR32: 25.179 | BS32: 0.3610969489 | BT32: 49.83862133 | BV32: 81.0712973 | BZ32: 0.3906 | CA32: 3.2338 | CB32: 71.26291667 | CC32: 0.02485868502 | CD32: 83459
B33: -10 | C33: 228 | D33: Chile | E33: 2003 | F33: 75.64389515 | G33: 26.729 | H33: 22.859 | BM33: 2003 | BN33: 0.05915877271 | BO33: 0.05116077103 | BP33: 0.605 | BQ33: 0.007998001673 | BR33: 42.754 | BS33: 0.5652009315 | BT33: 60.9984308 | BV33: 98.67516685 | BZ33: 0.7245 | CA33: 5.451 | CB33: 73.265825 | CC33: 0.02810589893 | CD33: 86885
B34: -9 | C34: 228 | D34: Chile | E34: 2004 | F34: 99.23561219 | G34: 39.0534 | H34: 29.191 | BM34: 2004 | BN34: 0.1101963273 | BO34: 0.09938367671 | BP34: 1.073 | BQ34: 0.01081265058 | BR34: 64.127 | BS34: 0.646209547 | BT34: 75.97531106 | BV34: 106.3584015 | BZ34: 0.8096 | CA34: 8.968 | CB34: 74.03724167 | CC34: 0.01052901085 | CD34: 93124
B35: -8 | C35: 228 | D35: Chile | E35: 2005 | F35: 122.9581925 | G35: 48.9659 | H35: 38.2 | BM35: 2005 | BN35: 0.1020582667 | BO35: 0.08755740292 | BP35: 1.783 | BQ35: 0.01450086378 | BR35: 67.631 | BS35: 0.5500324838 | BT35: 91.89843108 | BV35: 124.7381776 | BZ35: 1.4962 | CA35: 12.281 | CB35: 76.2973 | CC35: 0.03052596616 | CD35: 98476
B36: -7 | C36: 228 | D36: Chile | E36: 2006 | F36: 154.7819528 | G36: 67.118 | H36: 44.74 | BM36: 2006 | BN36: 0.1665827284 | BO36: 0.144577579 | BP36: 3.406 | BQ36: 0.02200514943 | BR36: 43.336 | BS36: 0.2799809618 | BT36: 120.9571461 | BU36: 0.7814680198 | BV36: 136.8682627 | BW36: 0.8842649951 | BZ36: 2.4202 | CA36: 21.267 | CB36: 78.89305 | CC36: 0.03402151845 | CD36: 104721
B37: -6 | C37: 228 | D37: Chile | E37: 2007 | F37: 173.4710771 | G37: 77.5843 | H37: 53.93 | BM37: 2007 | BN37: 0.1544021081 | BO37: 0.1363587544 | BP37: 3.13 | BQ37: 0.01804335369 | BR37: 100.604 | BS37: 0.5799468226 | BT37: 164.5854183 | BU37: 0.9487772892 | BV37: 163.8585483 | BW37: 0.9445871378 | BX37: 0.03834023531 | BY37: 0.1699404712 | BZ37: 4.8422 | CA37: 24.286 | CB37: 82.37495 | CC37: 0.04413443263 | CD37: 109889
B38: -5 | C38: 228 | D38: Chile | E38: 2008 | F38: 179.5101068 | G38: 75.1231 | H38: 70.086 | BM38: 2008 | BN38: 0.04438245925 | BO38: 0.0280602585 | BP38: 2.93 | BQ38: 0.01632220075 | BR38: 146.148 | BS38: 0.8141491451 | BT38: 142.7108231 | BU38: 0.7950016054 | BV38: 172.5444235 | BW38: 0.9611961498 | BX38: 0.02662413493 | BY38: 0.1088168079 | BZ38: 4.7642 | CA38: 19.386 | CB38: 89.56086667 | CC38: 0.08723424617 | CD38: 113740
B39: -4 | C39: 228 | D39: Chile | E39: 2009 | F39: 172.5117157 | G39: 63.9038 | H39: 50.221 | BM39: 2009 | BN39: 0.08837544709 | BO39: 0.07931519287 | BP39: 1.563 | BQ39: 0.009060254221 | BR39: 123.585 | BS39: 0.7163861279 | BT39: 191.9610856 | BU39: 1.112742314 | BV39: 214.5574371 | BW39: 1.243726759 | BX39: 0.02933537519 | BY39: 0.09354215675 | BZ39: 4.2492 | CA39: 16.382 | CB39: 90.902725 | CC39: 0.01498264123 | CD39: 111972
B40: -3 | C40: 228 | D40: Chile | E40: 2010 | F40: 218.271792 | G40: 81.9565 | H40: 67.818 | BM40: 2010 | BN40: 0.08498349615 | BO40: 0.06477474651 | BP40: 4.411 | BQ40: 0.02020874964 | BR40: 177.662 | BS40: 0.8139485104 | BT40: 235.083319 | BU40: 1.07702107 | BV40: 264.7159888 | BW40: 1.212781488 | BX40: 0.02837043072 | BY40: 0.09696731929 | BZ40: 5.5227 | CA40: 21.098 | CB40: 92.18265833 | CC40: 0.01408025264 | CD40: 118515
B41: -2 | C41: 228 | D41: Chile | E41: 2011 | F41: 252.0719296 | G41: 94.349 | H41: 86.031 | BM41: 2011 | BN41: 0.044364321 | BO41: 0.03299851758 | BP41: 2.865 | BQ41: 0.01136580342 | BR41: 220.961 | BS41: 0.8765791588 | BT41: 254.5122639 | BU41: 1.009681103 | BV41: 286.2223362 | BW41: 1.135478816 | BX41: 0.02150869793 | BY41: 0.07553533071 | BZ41: 5.2249 | CA41: 20.662 | CB41: 95.25576667 | CC41: 0.03333716329 | CD41: 125691
B42: =B43-1 -> -1 | C42: 228 | D42: Chile | E42: =+E43-1 -> 2012 | F42: 267.0261567 | G42: 90.333 | H42: 90.267 | BM42: 2012 | BN42: 0.00795802189 | BO42: 0.0002471667975 | BP42: 2.059 | BQ42: 0.007710855093 | BR42: 215.791 | BS42: 0.8081268243 | BT42: 291.5297933 | BU42: 1.09176493 | BV42: 333.6849661 | BW42: 1.249634007 | BX42: 0.02334972358 | BY42: 0.06405920509 | BZ42: 6.121 | CA42: 18.885 | CB42: 98.11224167 | CC42: 0.02998742333 | CD42: 132393
B43: 0 | C43: 228 | D43: Chile | E43: =$D$4 -> 2013 | F43: 278.3403688 | G43: 88.8859 | H43: 90.297 | BM43: 2013 | BN43: 0.002863041403 | BO43: -0.005069692213 | BP43: 2.208 | BQ43: 0.007932733616 | BR43: 218.97 | BS43: 0.7866986775 | BT43: 306.1443511 | BU43: 1.099892022 | BV43: 344.1972492 | BW43: 1.236605566 | BX43: 0.02015940027 | BY43: 0.05333477053 | BZ43: 5.99 | CA43: 18.139 | CB43: 99.997575 | CC43: 0.01921608661 | CD43: 137750
B44: 1 | C44: 228 | D44: Chile | E44: =+E43+1 -> 2014 | F44: 260.9540257 | G44: 85.7795 | H44: 83.01 | BM44: 2014 | BN44: 0.01872552066 | BO44: 0.01061298055 | BP44: 2.117 | BQ44: 0.00811254011 | BR44: 224.005 | BS44: 0.8584079109 | BT44: 324.3903786 | BU44: 1.243093981 | BV44: 360.7089644 | BW44: 1.382270166 | BX44: 0.01908381389 | BY44: 0.04254213189 | BZ44: 6.099 | CA44: 15.286 | CB44: 104.3894667 | CC44: 0.04391998173 | CD44: 140529
B45: 2 | C45: 228 | D45: Chile | E45: =+E44+1 -> 2015 | F45: 242.5367154 | G45: 71.8193 | H45: 71.772 | BM45: 2015 | BN45: 0.007859840919 | BO45: 0.0001950220193 | BP45: 1.859 | BQ45: 0.0076648189 | BR45: 182.386 | BS45: 0.751993362 | BT45: 314.2320457 | BU45: 1.295606091 | BV45: 359.3382525 | BW45: 1.48158291 | BX45: 0.01402667856 | BY45: 0.02957790245 | BZ45: 4.748 | CA45: 11.133 | CB45: 108.9292667 | CC45: 0.04348906211 | CD45: 143693
B46: 3 | C46: 228 | D46: Chile | E46: 2016 | F46: 247.0251512 | G46: 70.0974 | H46: 67.978 | BM46: 2016 | BN46: 0.01434428836 | BO46: 0.00857969316 | BP46: 1.424 | BQ46: 0.005764595196 | BR46: 183.0547949 | BS46: 0.7410370725 | BT46: 330.629704 | BU46: 1.338445508 | BV46: 379.3095108 | BW46: 1.53550968 | BX46: 0.01120069599 | BY46: 0.02836259225 | BZ46: 3.653 | CA46: 10.578 | CB46: 113.0573417 | CC46: 0.03789684009 | CD46: 145928
B47: 4 | C47: 228 | D47: Chile | E47: 2017 | F47: 251.2204383 | G47: 77.76363681 | H47: 73.36800766 | BM47: 2017 | BN47: 0.02387609844 | BO47: 0.0174971001 | BP47: 1.60253476 | BQ47: 0.006378998342 | BR47: 177.7899065 | BS47: 0.7077047856 | BT47: 348.2197669 | BU47: 1.386112409 | BV47: 400.3384524 | BW47: 1.593574373 | BX47: 0.01078572885 | BY47: 0.03360253894 | BZ47: 3.665834959 | CA47: 13.10229482 | CB47: 116.2198503 | CC47: 0.02797260748 | CD47: 148367.6604
B48: 5 | C48: 228 | D48: Chile | E48: 2018 | F48: 262.0030277 | G48: 80.60542174 | H48: 76.3594542 | BM48: 2018 | BN48: 0.02243018735 | BO48: 0.01620579571 | BP48: 1.630809454 | BQ48: 0.006224391633 | BR48: 126.4435131 | BS48: 0.4826032514 | BT48: 366.9006333 | BU48: 1.400367914 | BV48: 423.412832 | BW48: 1.616060836 | BX48: 0.009646449004 | BY48: 0.03328566543 | BZ48: 3.461242824 | CA48: 13.73079631 | CB48: 119.7544021 | CC48: 0.0304126344 | CD48: 151804.5968
B49: 6 | C49: 228 | D49: Chile | E49: 2019 | F49: 274.0335057 | G49: 83.95155459 | H49: 79.83118153 | BM49: 2019 | BN49: 0.02116095155 | BO49: 0.01503601923 | BP49: 1.678436677 | BQ49: 0.006124932322 | BR49: 128.1213276 | BS49: 0.4675389139 | BT49: 386.7956785 | BU49: 1.411490458 | BV49: 448.4869128 | BW49: 1.636613419 | BX49: 0.008497298127 | BY49: 0.0325335197 | BZ49: 3.211193986 | CA49: 14.188363 | CB49: 123.3470342 | CC49: 0.03 | CD49: 155903.3209
B50: 7 | C50: 228 | D50: Chile | E50: 2020 | F50: 287.3431341 | G50: 87.5121813 | H50: 83.48452899 | BM50: 2020 | BN50: 0.02004720185 | BO50: 0.01401687334 | BP50: 1.732773495 | BQ50: 0.006030328515 | BR50: 139.4666461 | BS50: 0.4853662035 | BT50: 408.0342934 | BU50: 1.420024511 | BV50: 475.6453189 | BW50: 1.655321678 | BX50: 0.007595279127 | BY50: 0.03183400944 | BZ50: 3.025955777 | CA50: 14.70545071 | CB50: 127.0474452 | CC50: 0.03 | CD50: 160424.5173
B51: 8 | C51: 228 | D51: Chile | E51: 2021 | F51: 302.1126559 | G51: 91.38761956 | H51: 87.34116378 | BM51: 2021 | BN51: 0.01933719969 | BO51: 0.01339386384 | BP51: 1.79555698 | BQ51: 0.005943335854 | BR51: 97.84974201 | BS51: 0.3238849485 | BT51: 430.7647157 | BU51: 1.425841345 | BV51: 504.873825 | BW51: 1.671144241 | BX51: 0.006445928045 | BY51: 0.03071631664 | BZ51: 2.709064486 | CA51: 15.04837439 | CB51: 130.8588686 | CC51: 0.03 | CD51: 165445.8046
B52: 9 | C52: 228 | D52: Chile | E52: 2022 | F52: 321.3020241 | G52: 95.56290936 | H52: 91.35081611 | BM52: 2022 | BN52: 0.01892197627 | BO52: 0.01310945137 | BP52: 1.867576016 | BQ52: 0.005812524902 | BR52: 98.84974201 | BS52: 0.3076536548 | BT52: 455.1203238 | BU52: 1.416487572 | BV52: 536.5488581 | BW52: 1.669920567 | BX52: 0.00478505115 | BY52: 0.02984753672 | BZ52: 2.123068134 | CA52: 15.52131723 | CB52: 134.7846346 | CC52: 0.03 | CD52: 170824.4477
BP53: =IF(ISNUMBER(VLOOKUP($C53,[1]BIS_WEO!$E$2:$CE$304,MATCH($E53,[1]BIS_WEO!$K$1:$CE$1,0)+6,0)),VLOOKUP($C53,[1]BIS_WEO!$E$2:$CE$304,MATCH($E53,[1]BIS_WEO!$K$1:$CE$1,0)+6,0),"") -> 
BP54: =IF(ISNUMBER(VLOOKUP($C54,[1]BIS_WEO!$E$2:$CE$304,MATCH($E54,[1]BIS_WEO!$K$1:$CE$1,0)+6,0)),VLOOKUP($C54,[1]BIS_WEO!$E$2:$CE$304,MATCH($E54,[1]BIS_WEO!$K$1:$CE$1,0)+6,0),"") -> 
BP55: =IF(ISNUMBER(VLOOKUP($C55,[1]BIS_WEO!$E$2:$CE$304,MATCH($E55,[1]BIS_WEO!$K$1:$CE$1,0)+6,0)),VLOOKUP($C55,[1]BIS_WEO!$E$2:$CE$304,MATCH($E55,[1]BIS_WEO!$K$1:$CE$1,0)+6,0),"") -> 

Sheet Sheet4 (hidden)
A1: =1 -> 1 | B1: =_xll.RiskCDS1([0]!NewMatrix2,[0]!NewMatrix2,Sheet4!A1+(0*1000000000)) ->  | C1: =_xll.RiskCDS2(Sheet4!B1,1,) ->  | D1: =_xll.RiskCDS2(Sheet4!B1,2,) ->  | E1: =_xll.RiskCDS2(Sheet4!B1,3,) ->  | F1: =_xll.RiskCDS2(Sheet4!B1,4,) ->  | G1: =_xll.RiskCDS2(Sheet4!B1,4,) ->  | H1: =_xll.RiskCDS2(Sheet4!B1,5,) -> 

Sheet RiskSerializationData (hidden)
A1: 5 | B1: 0
A2: 0
A3: =Simulations!$S$7 ->  | B3: TRUE | C3: 0 | D3: 1 | E3: GF1_rK0qDwEADgDlAAwjACYAOQBfAHMAdACCAJAAvwDhANsAKgD//wAAAAAAAQQAAAAABTAuMDAlAAAAASBuZmEgc3MsIHdpdGggdmFsIC8gTkZBIHZhbHVhdGlvbgEAAQEQAAIAAQpTdGF0aXN0aWNzAwEBAP8BAQEBAQABAQEABAAAAAEBAQEBAAEBAQAEAAAAAZQAAicAIG5mYSBzcywgd2l0aCB2YWwgLyBORkEgdmFsdWF0aW9uAAAvAQIAAgDHANEAAQECAZqZmZmZmak/AABmZmZmZmbuPwAABQABAQEAAQEBAA== | F3: 1 | G3: 0 | H3: 0 | J3: >75% | K3: <25% | L3: >90% | AG3: =Simulations!$S$7 ->  | AH3: 1 | AI3: 1 | AJ3: FALSE | AK3: TRUE | AL3: 0 | AM3: FALSE | AN3: =_ -> 
A4: =Simulations!$BV$53 -> 0 | B4: TRUE | C4: 0 | D4: 1 | E4: GF1_rK0qDwEADgCuAAwjACYAOABDAFcAWABmAHQAiACqAKQAKgD//wAAAAAAAQQAAAAABDAuMCUAAAABBVNTIE5YAQABARAAAgABClN0YXRpc3RpY3MDAQEA/wEBAQEBAAEBAQAEAAAAAQEBAQEAAQEBAAQAAAABeAACDAAFU1MgTlgAAC8BAgACAJAAmgABAQIBmpmZmZmZqT8AAGZmZmZmZu4/AAAFAAEBAQABAQEA | F4: 1 | G4: 0 | H4: 0 | J4: >75% | K4: <25% | L4: >90% | AG4: =Simulations!$BV$53 -> 0 | AH4: 12 | AI4: 1 | AJ4: FALSE | AK4: TRUE | AL4: 0 | AM4: FALSE | AN4: =_ -> 
A5: =Simulations!$BV$54 -> 0 | B5: TRUE | C5: 0 | D5: 1 | E5: GF1_rK0qDwEADgCpAAwjACYAOQBBAFUAVgBkAHIAgwClAJ8AKgD//wAAAAAAAQQAAAAABTAuMDAlAAAAAQJyMQEAAQEQAAIAAQpTdGF0aXN0aWNzAwEBAP8BAQEBAQABAQEABAAAAAEBAQEBAAEBAQAEAAAAAXYAAgkAAnIxAAAvAQIAAgCLAJUAAQECAZqZmZmZmak/AABmZmZmZmbuPwAABQABAQEAAQEBAA== | F5: 1 | G5: 0 | H5: 0 | J5: >75% | K5: <25% | L5: >90% | AG5: =Simulations!$BV$54 -> 0 | AH5: 13 | AI5: 1 | AJ5: FALSE | AK5: TRUE | AL5: 0 | AM5: FALSE | AN5: =_ -> 
A6: =Simulations!$AV$31 -> 0 | B6: FALSE | C6: 1 | D6: 1 | E6: GF1_rK0qDwEADgD4AAwjACYAOABqAH4AfwCNAJsA0gD0AO4AKgD//wAAAAAAAQQAAAAABDAuMDAAAAABDW4uYS4gLyBhc3NldHMBH0NvbXBhcmlzb24gd2l0aCBOb3JtYWwoMCwwLjAzNSkBARAAAgABClN0YXRpc3RpY3MDAQEA/wEBAQEBAAEBAQAEAAAAAQEBAQEAAQEBAAQAAAACogACugAAFAANbi5hLiAvIGFzc2V0cwAALwECAAIAFgAPTm9ybWFsKDAsMC4wMzUpAQElAQIA2gDkAAEBAgGamZmZmZmpPwAAZmZmZmZm7j8AAAUAAQEBAAEBAQA= | F6: 2 | G6: 0 | H6: 0 | AG6: =Simulations!$AV$31 -> 0 | AH6: 10 | AI6: 1 | AJ6: FALSE | AK6: FALSE | AL6: 1 | AM6: FALSE | AN6: =_ ->  | AO6: =Simulations!$AV$31 -> 0 | AP6: 10 | AQ6: 1 | AR6: TRUE | AS6: FALSE | AT6: 1 | AU6: TRUE | AV6: =_RiskNormal(0,0.035,_xll.RiskCorrmat(NewMatrix4,5)) -> 
A7: =Simulations!$AR$35 ->  | B7: FALSE | C7: 1 | D7: 1 | E7: GF1_rK0qDwEADgD8AAwjACYAOABsAIAAgQCPAJ0A1gD4APIAKgD//wAAAAAAAQQAAAAABDAuMDAAAAABD24uYS4gLyBueCBzaG9jawEfQ29tcGFyaXNvbiB3aXRoIE5vcm1hbCgwLDAuMDAzKQEBEAACAAEKU3RhdGlzdGljcwMBAQD/AQEBAQEAAQEBAAQAAAABAQEBAQABAQEABAAAAAKkAAK+AAAWAA9uLmEuIC8gbnggc2hvY2sAAC8BAgACABYAD05vcm1hbCgwLDAuMDAzKQEBJQECAN4A6AABAQIBmpmZmZmZqT8AAGZmZmZmZu4/AAAFAAEBAQABAQEA | F7: 2 | G7: 0 | H7: 0 | AG7: =Simulations!$AR$35 ->  | AH7: 26 | AI7: 1 | AJ7: FALSE | AK7: FALSE | AL7: 1 | AM7: FALSE | AN7: =_ ->  | AO7: =Simulations!$AR$35 ->  | AP7: 26 | AQ7: 1 | AR7: TRUE | AS7: FALSE | AT7: 1 | AU7: TRUE | AV7: =_RiskNormal(0,0.003,_xll.RiskCorrmat(NewMatrix4,1)) -> 
A8: 0
A9: FALSE | B9: 13440 | C9: 6215 | D9: 7050 | E9: 100
A10: FALSE | B10: 13440 | C10: 6215 | D10: 7050 | E10: 500
A11: FALSE | B11: 13440 | C11: 6215 | D11: 7050 | E11: 1000
A12: FALSE | B12: 13440 | C12: 6215 | D12: 7050 | E12: 1500
A13: FALSE | B13: 13440 | C13: 6215 | D13: 7050 | E13: 2000
A14: 0
A15: 0 | B15: FALSE | C15: FALSE | D15: 10 | E15: 0.95 | F15: 1

Sheet Simulations
L1: 0.2 | M1: 0.1 | S1: NFA valuation | AA1: Elasticity of NX to REER
L2: k outf shock | M2: e_x = | N2: =Data!N2 -> 0 | O2: k inf shock | P2: ∆%(REER)= | S2: . | T2: . | Z2: Period 1 | AA2: -0.3
M3: e_m = | N3: =Data!N3 -> 0 | P3: REER_0= | S3: 100 | Z3: Period 2 | AA3: =AA2 -> -0.3 | AW3: Fx composition of the stocks of A and L:
P4: REER_1= | S4: =S3*(1+S2) ->  | Z4: Period 3 | AA4: =AA3 -> -0.3 | AX4: A/GDP | AY4: L/GDP
M5: tb ss, with val | N5: =BN54 ->  | Z5: Period 4 | AA5: =AA4 -> -0.3 | AW5: 2016 | AX5: =Data!BU46 -> 1.338445508 | AY5: =Data!BW46 -> 1.53550968
M6: tb ss, w/o val | N6: =BO54 ->  | P6: nfa= | Z6: Period 5 | AA6: =AA5 -> -0.3 | AW6: A, FC | AX6: 1 | BK6: 1*(B45<=$G$3)
M7: nfa ss, with val | N7: =(-((AP52)/(1-AP52))*N5) ->  | Q7: ER Solution: | S7: =_xll.RiskOutput()+S2 ->  | Z7: Period 6 | AA7: -0.3 | AW7: L, FC | AX7: 0.3 | BK7: ($D$7-(($D$7-$D$8)/$G$3)*B45)*BK46
M8: r/1-r | N8: =D8/(1-D8) -> 0 | AA8: =SUM(AA2:AA7) -> -1.8
M9: nfa ss, w/o val | N9: =(-((AP52)/(1-AP52))*N6) ->  | AK9: =STDEV(AK12:AK43) -> 0.08465620593 | AL9: =STDEV(AL12:AL43) -> 0.06485078738 | AN9: =STDEV(AN12:AN42) ->  | AW9: NFA/GDP (Local Currency, Assets) | AX9: NFA/GDP (Foreign Currency, Assets) | AY9: NFA/GDP (Local Currency, Liab.) | AZ9: NFA/GDP (Foreign Currency, Liab.) | BC9: NETFX
BE10: nfa GM | BF10: Potential Output (Constant Prices, LCU, Billions) | BG10: Long Term Bond Yield | BH10: Growth Rate Potential Output | BI10: Trade Balance (% of GDP) | BJ10: path of delta | BK10: counter | BL10: delta * rho | BM10: path of alpha
AT11: AR1 | AU11: I if SC
V12: =IFERROR(F12,"n.a.") -> 0 | W12: =IFERROR(G12/T12*100,"n.a.") -> n.a. | X12: =IFERROR(W12/#REF!-1,"n.a.") -> n.a. | Y12: =IFERROR(H12/U12*100,"n.a.") -> n.a. | AK12: 0.1813713029 | AL12: 0.2267673393 | AM12: =1+AL12 -> 1.226767339 | AS12: nx | AT12: 0.27 | AU12: 1 | BE12: =AJ12 -> 0 | BF12: 6918.123496 | BG12: 6.842475562 | BH12: =IFERROR(BF12/#REF!-1,"n.a.") -> n.a. | BI12: =AD12-AF12 -> 0 | BM12: 0
V13: 0 | W13: n.a. | X13: =IFERROR(W13/W12-1,"n.a.") -> n.a. | Y13: n.a. | AK13: 0.1926994488 | AL13: 0.1490266114 | AM13: 1.149026611 | AN13: =+V13/V12-1 ->  | AO13: =1+AN13 ->  | AP13: =AO13/AM13 ->  | AS13: rg | AT13: 0.12 | AU13: 1 | BE13: 0 | BF13: 7129.32874 | BG13: 7.945469613 | BH13: =IFERROR(BF13/BF12-1,"n.a.") -> 0.03052926767 | BI13: 0 | BM13: =BM12 -> 0
V14: 0 | W14: n.a. | X14: n.a. | Y14: n.a. | AK14: 0.0629160446 | AL14: 0.09149230012 | AM14: 1.0914923 | AS14: ryol | AT14: 0.41 | AU14: 1 | BE14: 0 | BF14: 7358.205802 | BG14: 8.070132497 | BH14: 0.03210359208 | BI14: 0 | BM14: 0
V15: 0 | W15: n.a. | X15: n.a. | Y15: n.a. | AK15: 0.1999579483 | AL15: 0.142850979 | AM15: 1.142850979 | BE15: 0 | BF15: 7615.39622 | BG15: 7.095430832 | BH15: 0.03495287093 | BI15: 0 | BM15: 0
V16: 0 | W16: n.a. | X16: n.a. | Y16: n.a. | AK16: 0.1986751774 | AL16: 0.1069819362 | AM16: 1.106981936 | BE16: 0 | BF16: 7893.429284 | BG16: 5.738571871 | BH16: 0.0365093366 | BI16: 0 | BM16: 0
V17: 0 | W17: n.a. | X17: n.a. | Y17: n.a. | AK17: 0.1152755247 | AL17: 0.03808170538 | AM17: 1.038081705 | AW17: Data from Benetrix Lane and Shambaugh | BE17: 0 | BF17: 8158.369541 | BG17: 4.805955013 | BH17: 0.03356465835 | BI17: 0 | BM17: 0
V18: 0 | W18: n.a. | X18: n.a. | Y18: n.a. | AK18: 0.1505776659 | AL18: 0.08876831841 | AM18: 1.088768318 | AS18: Defining the distribution of innovations | BE18: 0 | BF18: 8416.736722 | BG18: 4.745789326 | BH18: 0.0316689726 | BI18: 0 | BM18: 0
V19: 0 | W19: n.a. | X19: n.a. | Y19: n.a. | AK19: 0.1554393207 | AL19: 0.1506520854 | AM19: 1.150652085 | AR19: nx | AS19: =_xll.RiskNormal(0,0.021, _xll.RiskCorrmat(NewMatrix4,1)) ->  | BE19: 0 | BF19: 8672.57227 | BG19: 3.708072465 | BH19: 0.03039604963 | BI19: 0 | BM19: 0
V20: 0 | W20: n.a. | X20: n.a. | Y20: n.a. | AK20: 0.01405822757 | AL20: 0.0247361545 | AM20: 1.024736154 | AR20: rg | AS20: =_xll.RiskNormal(0,0.019,_xll.RiskCorrmat(NewMatrix4,2)) ->  | AW20: 0.1727778 | AX20: 0.2048984 | AY20: 0.3675245 | AZ20: 0.05614417 | BA20: =AW20+AX20-(AY20+AZ20) -> -0.04599247 | BC20: 0.148754 | BE20: 0 | BF20: 8957.009054 | BG20: 3.130783971 | BH20: 0.03279728039 | BI20: 0 | BM20: 0
V21: 0 | W21: n.a. | X21: n.a. | Y21: n.a. | AK21: 0.1085258174 | AL21: 0.1112207963 | AM21: 1.111220796 | AR21: ryol | AS21: =_xll.RiskNormal(0,0.011,_xll.RiskCorrmat(NewMatrix4,3)) ->  | AW21: 0.165739 | AX21: 0.2308751 | AY21: 0.3956025 | AZ21: 0.05994879 | BA21: -0.05893719 | BC21: 0.170926 | BE21: 0 | BF21: 9210.963859 | BG21: 3.642503242 | BH21: 0.02835263461 | BI21: 0 | BM21: 0
V22: 0 | W22: n.a. | X22: n.a. | Y22: n.a. | AK22: 0.02019918202 | AL22: 0.04222425672 | AM22: 1.042224257 | AW22: 0.1576105 | AX22: 0.2178052 | AY22: 0.4005241 | AZ22: 0.06001808 | BA22: -0.08512648 | BC22: 0.157787 | BE22: 0 | BF22: 9468.914354 | BG22: 3.968384333 | BH22: 0.02800472343 | BI22: 0 | BM22: 0
V23: 0 | W23: n.a. | X23: n.a. | Y23: n.a. | AK23: 0.2138180264 | AL23: 0.04603497366 | AM23: 1.046034974 | AS23: Defining the correlation matrix of innovations | AW23: 0.1598096 | AX23: 0.2891406 | AY23: 0.4210699 | AZ23: 0.06496212 | BA23: =AW23+AX23-(AY23+AZ23) -> -0.03708182 | BC23: 0.224179 | BE23: =AJ23 -> 0 | BF23: 9714.159236 | BG23: 2.903683158 | BH23: 0.0259 | BI23: 0 | BM23: 0
V24: 0 | W24: =IFERROR(G24/#REF!*100,"n.a.") -> n.a. | X24: n.a. | Y24: =IFERROR(H24/#REF!*100,"n.a.") -> n.a. | AK24: 0.05433696691 | AL24: 0.005622450012 | AM24: 1.00562245 | AN24: =+V24/V23-1 ->  | AO24: =1+AN24 ->  | AP24: =AO24/AM24 ->  | AQ24: @RISK Correlations | AR24: ="n.a. / nx shock in "&CELL("address",$AR$36) -> n.a. / nx shock in $AR$36 | AS24: ="n.a. / g shock in "&CELL("address",$AS$36) -> n.a. / g shock in $AS$36 | AT24: ="n.a. / yol shock in "&CELL("address",$AT$36) -> n.a. / yol shock in $AT$36 | AU24: ="n.a. / yoa shock in "&CELL("address",$AU$36) -> n.a. / yoa shock in $AU$36 | AV24: ="assets / RHS in "&CELL("address",#REF!) ->  | AW24: 0.1629616 | AX24: 0.2916378 | AY24: 0.4152612 | AZ24: 0.07261724 | BA24: -0.03327904 | BC24: 0.219021 | BE24: 0 | BF24: 9979.355783 | BG24: 4.484395224 | BH24: 0.0273 | BI24: 0 | BM24: 0
R25: nx | S25: g | T25: rL | U25: REER | V25: 0 | W25: =IFERROR(G25/T24*100,"n.a.") -> n.a. | X25: n.a. | Y25: =IFERROR(H25/U24*100,"n.a.") -> n.a. | AK25: 0.1468101666 | AL25: 0.1590146006 | AM25: 1.159014601 | AO25: =1+AN25 ->  | AP25: =AO25/AM25 ->  | AQ25: ="n.a. / nx shock in "&CELL("address",$AR$36) -> n.a. / nx shock in $AR$36 | AR25: 1 | AW25: 0.1742066 | AX25: 0.348024 | AY25: 0.4903389 | AZ25: 0.08692428 | BA25: -0.05503258 | BC25: 0.2611 | BE25: 0 | BF25: 10267.75917 | BG25: 3.774580311 | BH25: 0.0289 | BI25: 0 | BM25: 0
V26: 0 | W26: n.a. | X26: n.a. | Y26: n.a. | AK26: 0.1213449713 | AL26: 0.08843221542 | AM26: 1.088432215 | AQ26: ="n.a. / g shock in "&CELL("address",$AS$36) -> n.a. / g shock in $AS$36 | AR26: =R28 -> -0.5 | AS26: 1 | AW26: 0.1933275 | AX26: 0.3892794 | AY26: 0.5590253 | AZ26: 0.08201035 | BA26: -0.05842875 | BC26: 0.307269 | BE26: 0 | BF26: 10594.27391 | BG26: 3.501660469 | BH26: 0.0318 | BI26: 0 | BM26: 1
Q27: nx | R27: 0.021 | V27: 0 | W27: n.a. | X27: n.a. | Y27: n.a. | AK27: 0.1037625468 | AL27: 0.1408508495 | AM27: 1.14085085 | AQ27: ="n.a. / yol shock in "&CELL("address",$AT$36) -> n.a. / yol shock in $AT$36 | AR27: =R29 -> 0.84 | AS27: =S29 -> -0.32 | AT27: 1 | AW27: 0.2088172 | AX27: 0.4297897 | AY27: 0.6721349 | AZ27: 0.07468798 | BA27: -0.10821598 | BC27: 0.355102 | BE27: 0 | BF27: 10943.88495 | BG27: 4.014934256 | BH27: 0.033 | BI27: 0 | BM27: 1
Q28: g | R28: -0.5 | S28: 0.019 | V28: 0 | W28: n.a. | X28: n.a. | Y28: n.a. | AK28: 0.1274451738 | AL28: 0.1383945072 | AM28: 1.138394507 | AQ28: ="n.a. / yoa shock in "&CELL("address",$AU$36) -> n.a. / yoa shock in $AU$36 | AR28: 0 | AS28: 0 | AT28: 0 | AU28: 1 | AV28: 0 | AW28: 0.210137 | AX28: 0.4876854 | AY28: 0.7616165 | AZ28: 0.06722937 | BA28: -0.13102347 | BC28: 0.420456 | BE28: 0 | BF28: 11330.20408 | BG28: 3.717159451 | BH28: 0.0353 | BI28: 0 | BM28: 1
Q29: rL | R29: 0.84 | S29: -0.32 | T29: 0.011 | V29: 0 | W29: n.a. | X29: n.a. | Y29: n.a. | AK29: 0.158822543 | AL29: 0.097633401 | AM29: 1.097633401 | AQ29: ="assets / RHS in "&CELL("address",#REF!) ->  | AR29: 0 | AS29: 0 | AT29: 0 | AU29: 0 | AV29: 1 | AW29: 0.2148117 | AX29: 0.5753722 | AY29: 0.8572143 | AZ29: 0.05309301 | BA29: -0.12012341 | BC29: 0.522279 | BE29: 0 | BF29: 11734.69237 | BG29: 3.443527257 | BH29: 0.0357 | BI29: =AD29-AF29 -> 0 | BM29: 1
Q30: REER | R30: -0.33 | S30: 0.35 | T30: -0.07 | U30: 0.31 | V30: 0 | W30: 0 | X30: n.a. | Y30: n.a. | AK30: -0.0268832457 | AL30: -0.02013812795 | AM30: 0.979861872 | AR30: nx shock | AS30: g shock | AT30: yol shock | AW30: 0.2373044 | AX30: 0.5092995 | AY30: 0.8663382 | AZ30: 0.04862792 | BA30: -0.16836222 | BC30: 0.460672 | BE30: 0 | BF30: 12148.92701 | BG30: 2.662483325 | BH30: 0.0353 | BI30: =AD30-AF30 -> 0 | BM30: 1
V31: 0 | W31: n.a. | X31: n.a. | Y31: n.a. | AK31: -0.07395222591 | AL31: -0.02659108808 | AM31: 0.9734089119 | AR31: =_xll.RiskNormal(0,0.021,_xll.RiskCorrmat(NewMatrix4,1)) ->  | AS31: =_xll.RiskNormal(0,0.019,_xll.RiskCorrmat(NewMatrix4,2)) ->  | AT31: =_xll.RiskNormal(0,0.011,_xll.RiskCorrmat(NewMatrix4,3)) ->  | AW31: 0.2428708 | AX31: 0.4361546 | AY31: 0.8685518 | AZ31: 0.04926327 | BA31: -0.23878967 | BC31: 0.386891 | BE31: 0 | BF31: 12557.13096 | BG31: 2.200871243 | BH31: 0.0336 | BI31: 0 | BM31: 1
V32: 0 | W32: n.a. | X32: n.a. | Y32: n.a. | AK32: -0.01975628623 | AL32: -0.05908237003 | AM32: 0.94091763 | AR32: =(_xll.RiskNormal(0,0.021,_xll.RiskCorrmat(NewMatrix4,1))*(1-$AU$12))+($AU$12*(_xll.RiskNormal(0,0.021,_xll.RiskCorrmat(NewMatrix4,1)) + $AT$12*AR31)) ->  | AS32: =(_xll.RiskNormal(0,0.019,_xll.RiskCorrmat(NewMatrix4,2))*(1-$AU$13))+($AU$13*(_xll.RiskNormal(0,0.019,_xll.RiskCorrmat(NewMatrix4,2)) + $AT$13*AS31)) ->  | AT32: =_xll.RiskNormal(0,0.011,_xll.RiskCorrmat(NewMatrix4,3))*(1-$AU$14)+($AU$14*(_xll.RiskNormal(0,0.011,_xll.RiskCorrmat(NewMatrix4,3)) + $AT$14*AT31)) ->  | AW32: 0.2735925 | AX32: 0.3661364 | AY32: 0.8279531 | AZ32: 0.05415367 | BA32: -0.24237787 | BC32: 0.311983 | BE32: 0 | BF32: 12917.52062 | BG32: 3.015163764 | BH32: 0.0287 | BI32: 0 | BM32: 1
V33: 0 | W33: n.a. | X33: n.a. | Y33: n.a. | AK33: 0.2129843931 | AL33: 0.08473329453 | AM33: 1.084733295 | AR33: =(_xll.RiskNormal(0,0.021,_xll.RiskCorrmat(NewMatrix4,1))*(1-$AU$12))+($AU$12*(_xll.RiskNormal(0,0.021,_xll.RiskCorrmat(NewMatrix4,1)) + $AT$12*AR32)) ->  | AS33: =(_xll.RiskNormal(0,0.019,_xll.RiskCorrmat(NewMatrix4,2))*(1-$AU$13))+($AU$13*(_xll.RiskNormal(0,0.019,_xll.RiskCorrmat(NewMatrix4,2)) + $AT$13*AS32)) ->  | AT33: =_xll.RiskNormal(0,0.011,_xll.RiskCorrmat(NewMatrix4,3))*(1-$AU$14)+($AU$14*(_xll.RiskNormal(0,0.011,_xll.RiskCorrmat(NewMatrix4,3)) + $AT$14*AT32)) ->  | AW33: 0.2666063 | AX33: 0.4797094 | AY33: 0.910145 | AZ33: 0.05875904 | BA33: -0.22258834 | BC33: 0.42095 | BE33: 0 | BF33: 13257.25141 | BG33: 1.717001483 | BH33: 0.0263 | BI33: 0 | BM33: 1
V34: 0 | W34: n.a. | X34: n.a. | Y34: n.a. | AK34: 0.1532481969 | AL34: 0.07200158628 | AM34: 1.072001586 | AR34: =(_xll.RiskNormal(0,0.021,_xll.RiskCorrmat(NewMatrix4,1))*(1-$AU$12))+($AU$12*(_xll.RiskNormal(0,0.021,_xll.RiskCorrmat(NewMatrix4,1)) + $AT$12*AR33)) ->  | AS34: =(_xll.RiskNormal(0,0.019,_xll.RiskCorrmat(NewMatrix4,2))*(1-$AU$13))+($AU$13*(_xll.RiskNormal(0,0.019,_xll.RiskCorrmat(NewMatrix4,2)) + $AT$13*AS33)) ->  | AT34: =_xll.RiskNormal(0,0.011,_xll.RiskCorrmat(NewMatrix4,3))*(1-$AU$14)+($AU$14*(_xll.RiskNormal(0,0.011,_xll.RiskCorrmat(NewMatrix4,3)) + $AT$14*AT33)) ->  | AW34: 0.3059572 | AX34: 0.5454646 | AY34: 0.9934605 | AZ34: 0.07697377 | BA34: -0.21901247 | BC34: 0.468491 | BE34: 0 | BF34: 13586.03124 | BG34: 1.606594203 | BH34: 0.0248 | BI34: 0 | BM34: 1
V35: 0 | W35: n.a. | X35: n.a. | Y35: n.a. | AK35: 0.2582741842 | AL35: 0.1119388136 | AM35: 1.111938814 | AR35: =(_xll.RiskNormal(0,0.021,_xll.RiskCorrmat(NewMatrix4,1))*(1-$AU$12))+($AU$12*(_xll.RiskNormal(0,0.021,_xll.RiskCorrmat(NewMatrix4,1)) + $AT$12*AR34)) ->  | AS35: =(_xll.RiskNormal(0,0.019,_xll.RiskCorrmat(NewMatrix4,2))*(1-$AU$13))+($AU$13*(_xll.RiskNormal(0,0.019,_xll.RiskCorrmat(NewMatrix4,2)) + $AT$13*AS34)) ->  | AT35: =_xll.RiskNormal(0,0.011,_xll.RiskCorrmat(NewMatrix4,3))*(1-$AU$14)+($AU$14*(_xll.RiskNormal(0,0.011,_xll.RiskCorrmat(NewMatrix4,3)) + $AT$14*AT34)) ->  | BE35: 0 | BF35: 13912.09599 | BG35: 0.9241700119 | BH35: 0.024 | BI35: 0 | BM35: 1
V36: 0 | W36: n.a. | X36: n.a. | Y36: n.a. | AK36: 0.1799824741 | AL36: 0.09993444087 | AM36: 1.099934441 | AR36: =(_xll.RiskNormal(0,0.021,_xll.RiskCorrmat(NewMatrix4,1))*(1-$AU$12))+($AU$12*(_xll.RiskNormal(0,0.021,_xll.RiskCorrmat(NewMatrix4,1)) + $AT$12*AR35)) ->  | AS36: =(_xll.RiskNormal(0,0.019,_xll.RiskCorrmat(NewMatrix4,2))*(1-$AU$13))+($AU$13*(_xll.RiskNormal(0,0.019,_xll.RiskCorrmat(NewMatrix4,2)) + $AT$13*AS35)) ->  | AT36: =_xll.RiskNormal(0,0.011,_xll.RiskCorrmat(NewMatrix4,3))*(1-$AU$14)+($AU$14*(_xll.RiskNormal(0,0.011,_xll.RiskCorrmat(NewMatrix4,3)) + $AT$14*AT35)) ->  | BE36: 0 | BF36: 14240.42146 | BG36: 1.569577216 | BH36: 0.0236 | BI36: 0 | BM36: 1
V37: 0 | W37: n.a. | X37: n.a. | Y37: n.a. | AK37: 0.2170003624 | AL37: 0.1267863477 | AM37: 1.126786348 | BF37: 14563.67903 | BG37: 1.758616371 | BH37: 0.0227 | BI37: 0 | BM37: 1
V38: 0 | W38: n.a. | X38: n.a. | Y38: n.a. | AK38: -0.007402347869 | AL38: 0.07465290117 | AM38: 1.074652901 | BF38: 14892.81817 | BG38: -0.1482867321 | BH38: 0.0226 | BI38: 0 | BM38: 1
V39: 0 | W39: n.a. | X39: n.a. | Y39: n.a. | AK39: 0.02468937521 | AL39: -0.05151925789 | AM39: 0.9484807421 | AQ39: Debt less disc val | AR39: =_xll.RiskOutput()+(1-(PRODUCT(AX54:AX59)))*AJ45 ->  | BF39: 15187.69597 | BG39: 3.577024259 | BH39: 0.0198 | BI39: 0 | BM39: 1
V40: 0 | W40: n.a. | X40: n.a. | Y40: n.a. | AK40: 0.1058820532 | AL40: 0.06041847421 | AM40: 1.060418474 | BF40: 15379.06094 | BG40: 1.577597117 | BH40: 0.0126 | BI40: 0 | BM40: 1
V41: 0 | W41: n.a. | X41: n.a. | Y41: n.a. | AK41: 0.03207787635 | AL41: 0.07956423036 | AM41: 1.07956423 | AQ41: Debt less disc val after revaluation | AR41: =(AR39)+($S$2*BB43) ->  | AT41: Debt less its discounted value NO reval | AU41: =(AR39) ->  | BF41: 15582.06455 | BG41: -0.35687598 | BH41: 0.0132 | BI41: 0 | BM41: 1
V42: 0 | W42: n.a. | X42: n.a. | Y42: n.a. | AK42: 0.04272262412 | AL42: 0.012848359 | AM42: 1.012848359 | BF42: 15828.26117 | BG42: -0.2738527562 | BH42: 0.0158 | BI42: 0 | BM42: 1
V43: 0 | W43: n.a. | X43: n.a. | Y43: n.a. | AK43: 0.07717722545 | AL43: 0.07087318033 | AM43: 1.07087318 | AW43: Elasticity of Net Debt to ER: | BB43: =AX45-AZ45 -> 0.8777926041 | BC43: =+BC34 -> 0.468491 | BD43: =+BA43+BC43*(-S2) ->  | BF43: 16110.00421 | BG43: 0.8866565041 | BH43: 0.0178 | BI43: 0 | BM43: 1
V44: 0 | W44: =+W43*(1+X44) ->  | Y44: n.a. | AL44: =BG44/100 -> 0.009309123914 | AM44: 1.009309124 | AP44: =$D$8 -> 0 | AS44: Reval: | AT44: =T53-AR41 ->  | AU44: =$T$4 -> 0 | BC44: =BC43 -> 0.468491 | BD44: =+BA44+BC44*(-S2) ->  | BF44: 16411.26129 | BG44: 0.9309123914 | BH44: 0.0187 | BI44: 0 | BJ44: =$D$7 -> 0 | BK44: =1*(B44<=$G$3) -> 1 | BM44: 1 | BN44: adj. trade balance (using revalued S2 Ex Rate) | BR44: returns on liabilities
V45: 0 | Y45: n.a. | AA45: Net Debt level in 2016: | AJ45: =AY5-AX5 -> 0.1970641717 | AL45: =BG45/100 -> 0.02195877863 | AM45: 1.021958779 | AP45: =$D$8+K3 -> 0 | AQ45: Discount ratio | AS45: No reval | AT45: =T52-AU51 ->  | AU45: =$S$4 ->  | AW45: =(1-AX6)*AX5 -> 0 | AX45: =AX6*AX5 -> 1.338445508 | AY45: =(1-AX7)*AY5 -> 1.074856776 | AZ45: =AX7*AY5 -> 0.4606529039 | BA45: =AW45+AX45-(AY45+AZ45) -> -0.1970641717 | BC45: =BC44 -> 0.468491 | BD45: =+BA45+BC45*(-S2) ->  | BF45: 16752.61553 | BG45: 2.195877863 | BH45: 0.0208 | BI45: 0 | BJ45: =$D$7 -> 0 | BM45: 1
V46: 0 | Y46: n.a. | AL46: 0.0156286774 | AM46: 1.015628677 | AP46: =$D$8+K4 -> 0 | AQ46: =PRODUCT(AX$54:AX54) ->  | AR46: Weo g pd1 | BB46: 2017 | BF46: 17121.17307 | BG46: 1.56286774 | BH46: 0.022 | BI46: 0 | BJ46: 0 | BM46: 1 | BN46: =(Data!BN47+AR31+AA2*$S$2)+((BQ46-BR46)*BP46) ->  | BR46: =Data!BY47+AT31 -> 
V47: 0 | Y47: n.a. | AL47: 0.01267292748 | AM47: 1.012672927 | AP47: =$D$8+K5 -> 0 | AQ47: =PRODUCT(AX$54:AX55) ->  | AR47: Weo g pd2 | BB47: 2018 | BF47: 17532.08122 | BG47: 1.267292748 | BH47: 0.024 | BI47: 0 | BJ47: 0 | BM47: 1 | BN47: =(Data!BN48+AR32+AA3*$S$2)+((BQ47-BR47)*BP47) ->  | BR47: =Data!BY48+AT32 -> 
V48: 0 | Y48: n.a. | AL48: 0.01599554823 | AM48: 1.015995548 | AP48: =$D$8+K6 -> 0 | AQ48: =PRODUCT(AX$54:AX56) ->  | AR48: Weo g pd3 | BB48: 2019 | BF48: 17935.31909 | BG48: 1.599554823 | BH48: 0.023 | BI48: 0 | BJ48: 0 | BM48: 1 | BN48: =(Data!BN49+AR33+AA4*$S$2)+((BQ48-BR48)*BP48) ->  | BR48: =Data!BY49+AT33 -> 
V49: 0 | Y49: n.a. | AL49: 0.02239755501 | AM49: 1.022397555 | AQ49: =PRODUCT(AX$54:AX57) ->  | AR49: Weo g pd4 | BB49: 2020 | BF49: 18326.30905 | BG49: 2.239755501 | BH49: 0.0218 | BI49: 0 | BJ49: 0 | BM49: 1 | BN49: =(Data!BN50+AR34+AA5*$S$2)+((BQ49-BR49)*BP49) ->  | BR49: =Data!BY50+AT34 -> 
V50: 0 | Y50: n.a. | AL50: 0.02432931301 | AM50: 1.024329313 | AQ50: =PRODUCT(AX$54:AX58) ->  | AR50: Weo g pd5 | BB50: 2021 | BF50: 18711.16154 | BG50: 2.432931301 | BH50: =IFERROR(BF50/BF49-1,IFERROR(BF49/BF48-1,"n.a.")) -> 0.021 | BI50: 0 | BJ50: 0 | BM50: 1 | BN50: =(Data!BN51+AR35+AA6*$S$2)+((BQ50-BR50)*BP50) ->  | BR50: =Data!BY51+AT35 -> 
V51: =V50*(1+AN51) ->  | Y51: n.a. | AL51: =(1-$G$7)*AL50+$G$6*$G$7 -> 0.02432931301 | AM51: 1.024329313 | AN51: =IF($B51-7>$G$3,$G$2,AN50+($G$2-AN$50)/$G$3) ->  | AQ51: =PRODUCT(AX$54:AX59) ->  | AR51: Weo g pd6 | BB51: 2022 | BF51: n.a. | BG51: n.a. | BH51: n.a. | BI51: 0 | BJ51: 0 | BM51: 1 | BN51: =(Data!BN52+AR36+AA7*$S$2)+((BQ51-BR51)*BP51) ->  | BR51: =Data!BY52+AT36 -> 
Q52: PV of trunc sum at T2 ER, NO REVAL | T52: =BO60+($T$2*AA8) ->  | V52: =V51*(1+AN52) -> 
Q53: PV of trunc sum at S2 ER, with REVAL | T53: =BO60+($S$2*AA8) ->  | AB53: : PV of trunc sum at the solution ER, cell T53: | AE53: =+X53/W53 ->  | AF53: =+AE53/AE52-1 ->  | AG53: =+Z53/W53 ->  | AH53: =+AG53/AG52-1 ->  | AI53: =+AG53*(1-BN53*($D$7)) ->  | AJ53: =+AI53/AI52-1 ->  | AU53: Shocks to Growth | AW53: Shocks to returns | AX53: Shocks to Discount | BN53: PV of truncated Sum
AT54: Weo g pd1 | AU54: =LN(Data!CD47)-LN(Data!CD46)+AS31 ->  | AV54: r1 | AW54: =BR46 ->  | AX54: =(1+AU54)/(1+AW54) ->  | BN54: =AQ46*((Data!BN47+AR31)+((BQ46-BR46)*BP46)) ->  | BO54: =AQ46*(Data!BN47+AR31) -> 
AT55: Weo g pd2 | AU55: =LN(Data!CD48)-LN(Data!CD47)+AS32 ->  | AV55: r2 | BN55: =AQ47*((Data!BN48+AR32)+((BQ47-BR47)*BP47)) ->  | BO55: =AQ47*(Data!BN48+AR32) -> 
AT56: Weo g pd3 | AU56: =LN(Data!CD49)-LN(Data!CD48)+AS33 ->  | AV56: r3 | BN56: =AQ48*((Data!BN49+AR33)+((BQ48-BR48)*BP48)) ->  | BO56: =AQ48*(Data!BN49+AR33) -> 
AT57: Weo g pd4 | AU57: =LN(Data!CD50)-LN(Data!CD49)+AS34 ->  | AV57: r4 | BN57: =AQ49*((Data!BN50+AR34)+((BQ49-BR49)*BP49)) ->  | BO57: =AQ49*(Data!BN50+AR34) -> 
AT58: Weo g pd5 | AU58: =LN(Data!CD51)-LN(Data!CD50)+AS35 ->  | AV58: r5 | BN58: =AQ50*((Data!BN51+AR35)+((BQ50-BR50)*BP50)) ->  | BO58: =AQ50*(Data!BN51+AR35) -> 
AT59: Weo g pd6 | AU59: =LN(Data!CD52)-LN(Data!CD51)+AS36 ->  | AV59: r6 | BN59: =AQ51*((Data!BN52+AR36)+((BQ51-BR51)*BP51)) ->  | BO59: =AQ51*(Data!BN52+AR36) -> 
BN60: =_xll.RiskOutput()+SUM(BN54:BN59) ->  | BO60: =_xll.RiskOutput()+SUM(BO54:BO59) -> 
BA61: PV at current ER | BN61: All | BO61: NX only

Sheet Nonlinear_1 (2) (hidden)
A5: t | C5: A/M | D5: residuals | E5: Forecast | J5: A/M | K5: residuals | L5: forecast
A6: 1 | B6: =Data!#REF! ->  | C6: =IFERROR(#REF!,#N/A) ->  | D6: =IFERROR(C6-E6,#N/A) ->  | E6: =IFERROR(#REF!,#N/A) ->  | G6: =Data!D3 -> 228 | H6: =Data!D2 -> Chile | I6: =#REF! ->  | J6: =C6 ->  | K6: =J6-L6 ->  | L6: =IF(D6="#N/A",#N/A,E6) -> 
A7: 2 | B7: =Data!#REF! ->  | C7: =IFERROR(#REF!,#N/A) ->  | D7: =IFERROR(C7-E7,#N/A) ->  | E7: =IFERROR(#REF!,#N/A) ->  | G7: =G6 -> 228 | H7: =H6 -> Chile | I7: =#REF! ->  | J7: =C7 ->  | K7: =J7-L7 ->  | L7: =IF(D7="#N/A",#N/A,E7) -> 
A8: 3 | B8: =Data!E12 -> 1982 | C8: =IFERROR(#REF!,#N/A) ->  | E8: =IFERROR(#REF!,#N/A) ->  | G8: =G7 -> 228 | H8: =H7 -> Chile | I8: =#REF! -> 
A9: 4 | B9: =Data!E13 -> 1983 | C9: =IFERROR(#REF!,#N/A) ->  | E9: =IFERROR(#REF!,#N/A) ->  | G9: 228 | H9: Chile | I9: =#REF! -> 
A10: 5 | B10: =Data!E14 -> 1984 | C10: =IFERROR(#REF!,#N/A) ->  | E10: =IFERROR(#REF!,#N/A) ->  | G10: 228 | H10: Chile | I10: =#REF! -> 
A11: 6 | B11: =Data!E15 -> 1985 | C11: =IFERROR(#REF!,#N/A) ->  | E11: =IFERROR(#REF!,#N/A) ->  | G11: 228 | H11: Chile | I11: =#REF! -> 
A12: 7 | B12: =Data!E16 -> 1986 | C12: =IFERROR(#REF!,#N/A) ->  | E12: =IFERROR(#REF!,#N/A) ->  | G12: 228 | H12: Chile | I12: =#REF! -> 
A13: 8 | B13: =Data!E17 -> 1987 | C13: =IFERROR(#REF!,#N/A) ->  | E13: =IFERROR(#REF!,#N/A) ->  | G13: 228 | H13: Chile | I13: =#REF! -> 
A14: 9 | B14: =Data!E18 -> 1988 | C14: =IFERROR(#REF!,#N/A) ->  | E14: =IFERROR(#REF!,#N/A) ->  | G14: 228 | H14: Chile | I14: =#REF! -> 
A15: 10 | B15: =Data!E19 -> 1989 | C15: =IFERROR(#REF!,#N/A) ->  | E15: =IFERROR(#REF!,#N/A) ->  | G15: 228 | H15: Chile | I15: =#REF! -> 
A16: 11 | B16: =Data!E20 -> 1990 | C16: =IFERROR(#REF!,#N/A) ->  | E16: =IFERROR(#REF!,#N/A) ->  | G16: 228 | H16: Chile | I16: =#REF! -> 
A17: 12 | B17: =Data!E21 -> 1991 | C17: =IFERROR(#REF!,#N/A) ->  | E17: =IFERROR(#REF!,#N/A) ->  | G17: 228 | H17: Chile | I17: =#REF! -> 
A18: 13 | B18: =Data!E22 -> 1992 | C18: =IFERROR(#REF!,#N/A) ->  | E18: =IFERROR(#REF!,#N/A) ->  | G18: 228 | H18: Chile | I18: =#REF! -> 
A19: 14 | B19: =Data!E23 -> 1993 | C19: =IFERROR(#REF!,#N/A) ->  | E19: =IFERROR(#REF!,#N/A) ->  | G19: 228 | H19: Chile | I19: =#REF! -> 
A20: 15 | B20: =Data!E24 -> 1994 | C20: =IFERROR(#REF!,#N/A) ->  | E20: =IFERROR(#REF!,#N/A) ->  | G20: 228 | H20: Chile | I20: =#REF! -> 
A21: 16 | B21: =Data!E25 -> 1995 | C21: =IFERROR(#REF!,#N/A) ->  | E21: =IFERROR(#REF!,#N/A) ->  | G21: 228 | H21: Chile | I21: =#REF! -> 
A22: 17 | B22: =Data!E26 -> 1996 | C22: =IFERROR(#REF!,#N/A) ->  | E22: =IFERROR(#REF!,#N/A) ->  | G22: 228 | H22: Chile | I22: =#REF! -> 
A23: 18 | B23: =Data!E27 -> 1997 | C23: =IFERROR(#REF!,#N/A) ->  | E23: =IFERROR(#REF!,#N/A) ->  | G23: 228 | H23: Chile | I23: =#REF! -> 
A24: 19 | B24: =Data!E28 -> 1998 | C24: =IFERROR(#REF!,#N/A) ->  | E24: =IFERROR(#REF!,#N/A) ->  | G24: 228 | H24: Chile | I24: =#REF! -> 
A25: 20 | B25: =Data!E29 -> 1999 | C25: =IFERROR(#REF!,#N/A) ->  | E25: =IFERROR(#REF!,#N/A) ->  | G25: 228 | H25: Chile | I25: =#REF! -> 
A26: 21 | B26: =Data!E30 -> 2000 | C26: =IFERROR(#REF!,#N/A) ->  | E26: =IFERROR(#REF!,#N/A) ->  | G26: 228 | H26: Chile | I26: =#REF! -> 
A27: 22 | B27: =Data!E31 -> 2001 | C27: =IFERROR(#REF!,#N/A) ->  | E27: =IFERROR(#REF!,#N/A) ->  | G27: 228 | H27: Chile | I27: =#REF! -> 
A28: 23 | B28: =Data!E32 -> 2002 | C28: =IFERROR(#REF!,#N/A) ->  | E28: =IFERROR(#REF!,#N/A) ->  | G28: 228 | H28: Chile | I28: =#REF! -> 
A29: 24 | B29: =Data!E33 -> 2003 | C29: =IFERROR(#REF!,#N/A) ->  | E29: =IFERROR(#REF!,#N/A) ->  | G29: 228 | H29: Chile | I29: =#REF! -> 
A30: 25 | B30: =Data!E34 -> 2004 | C30: =IFERROR(#REF!,#N/A) ->  | E30: =IFERROR(#REF!,#N/A) ->  | G30: 228 | H30: Chile | I30: =#REF! -> 
A31: 26 | B31: =Data!E35 -> 2005 | C31: =IFERROR(#REF!,#N/A) ->  | E31: =IFERROR(#REF!,#N/A) ->  | G31: 228 | H31: Chile | I31: =#REF! -> 
A32: 27 | B32: =Data!E36 -> 2006 | C32: =IFERROR(#REF!,#N/A) ->  | E32: =IFERROR(#REF!,#N/A) ->  | G32: 228 | H32: Chile | I32: =#REF! -> 
A33: 28 | B33: =Data!E37 -> 2007 | C33: =IFERROR(#REF!,#N/A) ->  | E33: =IFERROR(#REF!,#N/A) ->  | G33: 228 | H33: Chile | I33: =#REF! -> 
A34: 29 | B34: =Data!E38 -> 2008 | C34: =IFERROR(#REF!,#N/A) ->  | E34: =IFERROR(#REF!,#N/A) ->  | G34: 228 | H34: Chile | I34: =#REF! -> 
A35: 30 | B35: =Data!E39 -> 2009 | C35: =IFERROR(#REF!,#N/A) ->  | E35: =IFERROR(#REF!,#N/A) ->  | G35: 228 | H35: Chile | I35: =#REF! -> 
A36: 31 | B36: =Data!E40 -> 2010 | C36: =IFERROR(#REF!,#N/A) ->  | E36: =IFERROR(#REF!,#N/A) ->  | G36: 228 | H36: Chile | I36: =#REF! ->  | L36: =IF(D36="#N/A",#N/A,E36) -> 
A37: 32 | B37: =Data!E41 -> 2011 | C37: =IFERROR(#REF!,#N/A) ->  | E37: =IFERROR(#REF!,#N/A) ->  | G37: 228 | H37: Chile | I37: =#REF! -> 
A38: 33 | B38: =Data!E42 -> 2012 | C38: =IFERROR(#REF!,#N/A) ->  | E38: =IFERROR(#REF!,#N/A) ->  | G38: 228 | H38: Chile | I38: =#REF! -> 
A39: 34 | B39: =Data!E43 -> 2013 | C39: =IFERROR(#REF!,#N/A) ->  | E39: =IFERROR(#REF!,#N/A) ->  | G39: 228 | H39: Chile | I39: =#REF! -> 
B40: =Data!E44 -> 2014
B41: =Data!E45 -> 2015
B42: =Data!E46 -> 2016
B43: =Data!E47 -> 2017
B44: =Data!E48 -> 2018
B45: =Data!E49 -> 2019
B46: =Data!E50 -> 2020
B47: =Data!E51 -> 2021
B48: =Data!E52 -> 2022
B49: =Data!E53 -> 0
B50: =Data!E54 -> 0
B51: =Data!E55 -> 0
B52: =Data!#REF! -> 
B53: =Data!#REF! -> 
B54: =Data!#REF! -> 
B55: =Data!#REF! -> 
B56: =Data!#REF! -> 
B57: =Data!#REF! -> 
B58: =Data!#REF! -> 
B59: =Data!#REF! -> 
B60: =Data!#REF! -> 
B61: =Data!#REF! -> 
B62: =Data!#REF! -> 
B63: =Data!#REF! -> 
B64: =Data!#REF! -> 
B65: =Data!#REF! -> 
B66: =Data!#REF! -> 
B67: =Data!#REF! -> 
B68: =Data!#REF! -> 
B69: =Data!#REF! -> 
B70: =Data!#REF! -> 
B71: =Data!#REF! -> 
B72: =Data!#REF! -> 
B73: =Data!#REF! -> 
B74: =Data!#REF! -> 
B75: =Data!#REF! -> 
B76: =Data!#REF! -> 
B77: =Data!#REF! -> 
B78: =Data!#REF! -> 
B79: =Data!#REF! -> 
B80: =Data!#REF! -> 
B81: =Data!#REF! -> 
B82: =Data!#REF! -> 
B83: =Data!#REF! -> 
B84: =Data!#REF! -> 
B85: =Data!#REF! -> 
B86: =Data!#REF! -> 
B87: =Data!#REF! -> 
B88: =Data!#REF! -> 
B89: =Data!#REF! -> 
B90: =Data!#REF! -> 
B91: =Data!#REF! -> 
B92: =Data!#REF! -> 
B93: =Data!#REF! -> 
B94: =Data!#REF! -> 
B95: =Data!#REF! -> 
B96: =Data!#REF! -> 
B97: =Data!#REF! -> 
B98: =Data!#REF! -> 
B99: =Data!#REF! -> 
B100: =Data!#REF! -> 
B101: =Data!#REF! -> 
B102: =Data!#REF! -> 
B103: =Data!#REF! -> 
B104: =Data!#REF! -> 
B105: =Data!#REF! -> 
B106: =Data!#REF! -> 
B107: =Data!#REF! -> 
B108: =Data!#REF! -> 
B109: =Data!#REF! -> 
B110: =Data!#REF! -> 
B111: =Data!#REF! -> 
B112: =Data!#REF! -> 
B113: =Data!#REF! -> 
B114: =Data!#REF! -> 
B115: =Data!#REF! -> 
B116: =Data!#REF! -> 
B117: =Data!#REF! -> 
B118: =Data!#REF! -> 
B119: =Data!#REF! -> 
B120: =Data!#REF! -> 
B121: =Data!#REF! -> 
B122: =Data!#REF! -> 
B123: =Data!#REF! -> 
B124: =Data!#REF! -> 
B125: =Data!#REF! -> 
B126: =Data!#REF! -> 
B127: =Data!#REF! -> 
B128: =Data!#REF! -> 
